[Event "9th Sharjah Cup Women 2018"]
[Site "Sharjah"]
[Date "2018.12.19"]
[Round "8"]
[White "Szczepkowska, Karina"]
[Black "Bulmaga, Irina"]
[Result "1/2-1/2"]
[ECO "D41"]
[WhiteElo "2408"]
[BlackElo "2391"]
[Annotator "ChessBase"]
[PlyCount "61"]
[EventDate "2018.12.14"]
[EventType "swiss"]
[EventCountry "UAE"]
[SourceTitle "playchess.com"]
[Source "ChessBase"]
[SourceQuality "1"]
[TimeControl "5400+30"]

1. d4 {[%emt 0:00:00]} Nf6 {[%emt 0:00:00]} 2. c4 {[%emt 0:00:00]} e6 {[%emt 0:00:00]} 3. Nf3 {[%emt 0:00:21]} d5 {[%emt 0:00:00]} 4. Nc3 {[%emt 0:00:43]} c5 {[%emt 0:00:18]} 5. cxd5 {[%emt 0:02:46]} Nxd5 {[%emt 0:00:22]} 6. e4 {[%emt 0:01:41]} Nxc3 {[%emt 0:00:15]} 7. bxc3 {[%emt 0:00:06]} cxd4 {[%emt 0:01:09]} 8. cxd4 {[%emt 0:01:08]} Bb4+ {[%emt 0:00:17]} 9. Bd2 {[%emt 0:00:07]} Bxd2+ {[%emt 0:00:12]} 10. Qxd2 {[%emt 0:00:05]} O-O {[%emt 0:00:27]} 11. Rc1 {[%emt 0:04:01]} b6 {[%emt 0:04:50]} 12. Bd3 {[%emt 0:04:36]} Bb7 {[%emt 0:02:31]} 13. O-O {[%emt 0:00:59]} Nd7 {[%emt 0:01:24]} 14. Qe3 {[%emt 0:02:57]} Nf6 {[%emt 0:12:18]} 15. Ne5 {[%emt 0:09:51]} Qe7 {[%emt 0:10:25]} 16. f3 {[%emt 0:01:19]} Rac8 {[%emt 0:00:36]} 17. Rxc8 {[%emt 0:02:23]} Rxc8 {[%emt 0:02:53]} 18. Rc1 {[%emt 0:00:32]} Rxc1+ {[%emt 0:01:20]} 19. Qxc1 {[%emt 0:00:08]} Ne8 {[%emt 0:01:27]} 20. Qc3 {[%emt 0:02:25]} Qc7 {[%emt 0:01:23]} 21. Qxc7 {[%emt 0:01:09]} Nxc7 {[%emt 0:00:08]} 22. Kf2 {[%emt 0:00:20]} Kf8 {[%emt 0:01:34]} 23. Ke3 {[%emt 0:00:51]} Ke7 {[%emt 0:00:35]} 24. g4 {[%emt 0:01:35]} h6 {[%emt 0:01:27]} 25. Nc4 {[%emt 0:03:03]} f6 {[%emt 0:03:10]} 26. h4 {[%emt 0:01:48]} g5 {[%emt 0:01:31]} 27. h5 {[%emt 0:02:33]} Bc6 {[%emt 0:00:32]} 28. Nd2 {[%emt 0:00:41]} Ba4 {[%emt 0:01:13]} 29. Nb3 {[%emt 0:01:40]} Bxb3 {[%emt 0:00:16]} 30. axb3 {[%emt 0:00:03]} e5 {[%emt 0:00:18]} 31. d5 {[%emt 0:00:18]} 1/2-1/2

[Event "9th Sharjah Cup Women 2018"]
[Site "Sharjah"]
[Date "2018.12.19"]
[Round "8"]
[White "Mkrtchian, Lilit"]
[Black "Kulkarni Bhakti"]
[Result "1/2-1/2"]
[ECO "A14"]
[WhiteElo "2392"]
[BlackElo "2283"]
[Annotator "NA"]
[PlyCount "53"]
[EventDate "2018.12.14"]
[EventType "swiss"]
[EventCountry "UAE"]
[SourceTitle "playchess.com"]
[Source "ChessBase"]
[SourceQuality "1"]
[TimeControl "5400+30"]

1. c4 {[%emt 0:00:00]} e6 {[%emt 0:00:15]} 2. g3 {[%emt 0:00:14]} d5 {[%emt 0:00:36]} 3. Bg2 {[%emt 0:00:08]} Nf6 {[%emt 0:00:17]} 4. Nf3 {[%emt 0:00:10]} Be7 {[%emt 0:01:04]} 5. O-O {[%emt 0:01:38]} O-O {[%emt 0:00:14]} 6. Ne5 {[%emt 0:01:37] A14: English Opening: 1...e6 with b3 by White} (6. b3 c5 7. Bb2 b6 8. cxd5 Nxd5 9. d4 Bb7 10. dxc5 Bxc5 11. Nc3 Nd7 12. Nxd5 Bxd5 13. Qd3 Qe7 14. Rad1 Rfd8 15. Qc3 Nf6 16. Qe5 Rac8 17. Nh4 Bxg2 18. Rxd8+ Qxd8 19. Kxg2 {½-½ (45) So,W (2778)-Kramnik,V (2792) Paris 2018}) 6... d4 {[%emt 0:07:30]} 7. e3 {[%emt 0:10:16]} c5 {[%emt 0:01:17]} 8. d3 {[%emt 0:05:24]} Qc7 $146 {[%emt 0:02:46]} ({Predecessor:} 8... Nfd7 9. exd4 cxd4 10. Nxd7 Nxd7 11. Nd2 e5 12. Re1 f6 13. Qc2 a5 {0-1 (39) Malakhatko,V (2540)-Xu,Y (2465) Runavik 2017}) 9. exd4 {[%emt 0:22:48]} cxd4 {[%emt 0:03:05]} 10. Qe2 {[%emt 0:02:46]} Nc6 {[%emt 0:04:44]} 11. Bf4 {[%emt 0:01:25]} Bd6 {[%emt 0:07:24]} 12. Re1 {[%emt 0:00:15]} Nd7 {[%emt 0:07:58]} 13. Nxd7 {[%emt 0:02:31]} Bxd7 {[%emt 0:00:20]} 14. Bxd6 {[%emt 0:00:07]} Qxd6 {[%emt 0:00:05]} 15. Nd2 {[%emt 0:00:20]} Rae8 {[%emt 0:01:47]} 16. a3 {[%emt 0:10:55]} e5 {[%emt 0:11:16]} 17. Ne4 {[%emt 0:01:38]} Qg6 {[%emt 0:00:59]} 18. c5 {[%emt 0:00:09]} Bg4 {[%emt 0:05:30]} 19. Qc2 {[%emt 0:07:02]} Re7 {[%emt 0:06:30]} 20. Nd6 {[%emt 0:00:35]} Qf6 {[%emt 0:01:07]} 21. b4 {[%emt 0:08:32]} Bf3 {[%emt 0:01:22]} 22. Bxf3 {[%emt 0:00:11]} Qxf3 {[%emt 0:00:06]} 23. Qe2 $16 {[%emt 0:00:35]} Qd5 {[%emt 0:03:59]} 24. Qa2 {[%emt 0:00:05]} Qf3 {[%emt 0:01:55]} 25. Qe2 {[%emt 0:00:02]} Qd5 {[%emt 0:00:32]} 26. Qa2 {[%emt 0:00:10]} Qf3 {[%emt 0:00:05]} 27. Qe2 {[%emt 0:00:03]} 1/2-1/2

[Event "9th Sharjah Cup Women 2018"]
[Site "Sharjah"]
[Date "2018.12.19"]
[Round "8"]
[White "Khukhashvili, Sopiko"]
[Black "Nguyen, Thi Mai Hung"]
[Result "1-0"]
[ECO "C02"]
[WhiteElo "2338"]
[BlackElo "2280"]
[Annotator "NA"]
[PlyCount "69"]
[EventDate "2018.12.14"]
[EventType "swiss"]
[EventCountry "UAE"]
[SourceTitle "playchess.com"]
[Source "ChessBase"]
[SourceQuality "1"]
[TimeControl "5400+30"]

1. e4 {[%emt 0:00:00]} c5 {[%emt 0:00:00]} 2. c3 {[%emt 0:00:00]} e6 {[%emt 0:02:17]} 3. d4 {[%emt 0:00:03]} d5 {[%emt 0:00:07]} 4. e5 {[%emt 0:03:08]} Nc6 {[%emt 0:00:14]} 5. Nf3 {[%emt 0:00:02]} Qb6 {[%emt 0:00:38]} 6. a3 {[%emt 0:00:08]} c4 {[%emt 0:01:50]} 7. Nbd2 {[%emt 0:00:08]} Na5 {[%emt 0:00:09]} 8. g3 {[%emt 0:00:08]} Bd7 {[%emt 0:02:47]} 9. h4 {[%emt 0:00:28]} Ne7 {[%emt 0:03:14]} 10. Bh3 {[%emt 0:00:16] C02: French: Advance Variation} Qc7 {[%emt 0:04:48]} (10... h6 11. h5 Nc8 12. O-O Qc7 13. Ne1 Nb6 14. Qe2 O-O-O 15. Ng2 Be7 16. Rb1 Rdg8 17. f4 g6 {0-1 (43) Svidler,P (2749)-Andreikin,D (2715) Moscow 2012}) 11. O-O {[%emt 0:00:57]} Nc8 {[%emt 0:00:46]} 12. Ne1 {[%emt 0:12:28] LiveBook: 3 Games} Nb6 {[%emt 0:02:08]} 13. f4 {[%emt 0:00:32]} g6 {[%emt 0:03:02]} 14. Rb1 {[%emt 0:00:29]} Ba4 {[%emt 0:03:39]} 15. Qe2 {[%emt 0:00:09]} Be7 $146 {[%emt 0:06:44]} ({Predecessor:} 15... Nb3 16. Ndf3 Nxc1 17. Rxc1 O-O-O {1-0 (50) Nedostup,D (2223)-Favaloro,A (2116) Erice 2015}) 16. Ndf3 {[%emt 0:01:34]} O-O-O {[%emt 0:07:26]} 17. Ng5 {[%emt 0:06:55]} Be8 $1 {[%emt 0:00:43]} 18. Bxe6+ {[%emt 0:00:44]} fxe6 {[%emt 0:00:05]} 19. Nxe6 {[%emt 0:00:06]} Qd7 {[%emt 0:08:00]} 20. f5 {[%emt 0:06:35]} gxf5 {[%emt 0:00:45]} 21. Nxd8 {[%emt 0:00:03]} Qxd8 {[%emt 0:05:53]} 22. Bf4 {[%emt 0:01:27]} Rg8 {[%emt 0:00:29]} 23. Ng2 {[%emt 0:00:08]} Kb8 {[%emt 0:06:40]} 24. Kh2 {[%emt 0:02:31]} Ka8 {[%emt 0:00:25]} 25. e6 {[%emt 0:02:58]} Nc6 {[%emt 0:03:59]} 26. a4 {[%emt 0:02:38]} Na5 {[%emt 0:07:18]} 27. Rbe1 {[%emt 0:09:02]} Bxa4 {[%emt 0:10:49]} 28. Rf2 $11 {[%emt 0:00:17]} Nc6 {[%emt 0:03:15]} 29. Qh5 {[%emt 0:01:40]} Rh8 {[%emt 0:02:44]} 30. Ne3 {[%emt 0:00:40]} Nb8 {[%emt 0:03:00]} 31. Nxf5 {[%emt 0:01:33]} Be8 {[%emt 0:00:44]} 32. Qh6 {[%emt 0:01:10]} Nc6 {[%emt 0:01:38]} 33. Nxe7 {[%emt 0:00:58]} Qxe7 {[%emt 0:00:32]} 34. Bg5 {[%emt 0:00:10]} Qd6 {[%emt 0:02:07]} 35. Qg7 {[%emt 0:00:17]} 1-0

[Event "9th Sharjah Cup Women 2018"]
[Site "Sharjah"]
[Date "2018.12.19"]
[Round "8"]
[White "Gevorgyan, Irina"]
[Black "Abdulla, Khayala"]
[Result "1/2-1/2"]
[ECO "A04"]
[WhiteElo "2301"]
[BlackElo "2190"]
[Annotator "NA"]
[PlyCount "66"]
[EventDate "2018.12.14"]
[EventType "swiss"]
[EventCountry "UAE"]
[SourceTitle "playchess.com"]
[Source "ChessBase"]
[SourceQuality "1"]
[TimeControl "5400+30"]

1. Nf3 {[%emt 0:00:00]} c5 {[%emt 0:00:00]} 2. c4 {[%emt 0:00:00]} Nc6 {[%emt 0:00:00]} 3. Nc3 {[%emt 0:01:12]} g6 {[%emt 0:00:44]} 4. e3 {[%emt 0:08:59]} Nf6 {[%emt 0:01:49]} 5. d4 {[%emt 0:00:37]} cxd4 {[%emt 0:00:11]} 6. exd4 {[%emt 0:00:07]} d5 {[%emt 0:00:06]} 7. cxd5 {[%emt 0:19:40]} Nxd5 {[%emt 0:03:34]} 8. Bc4 {[%emt 0:01:57]} Nb6 {[%emt 0:00:23]} 9. Bb3 {[%emt 0:06:37]} Bg7 {[%emt 0:02:04]} 10. Be3 {[%emt 0:00:13]} O-O {[%emt 0:00:43]} 11. O-O {[%emt 0:01:06]} Bg4 {[%emt 0:09:41]} 12. h3 {[%emt 0:02:29]} Bxf3 {[%emt 0:01:18]} 13. Qxf3 {[%emt 0:00:08]} Nxd4 {[%emt 0:03:23] D94: Grünfeld: 4 Nf3 Bg7 5 e3} (13... Qd7 14. Rad1 Nxd4 15. Bxd4 Bxd4 16. Ne2 e5 17. Nxd4 exd4 18. Rd3 Rad8 19. Rfd1 Qe7 20. Rxd4 Rxd4 21. Rxd4 {½-½ (30) Smirin,I (2659)-Grischuk,A (2709) Rishon Le Ziyyon 2006}) 14. Qxb7 {[%emt 0:00:46] LiveBook: 4 Games} e5 {[%emt 0:05:30]} 15. Rad1 {[%emt 0:05:09]} Qc8 $146 {[%emt 0:08:30]} ({Predecessor:} 15... Qh4 16. Bxd4 exd4 17. Nb5 Qf4 18. g3 Qf5 19. Nxd4 Qxh3 20. Rfe1 Rad8 21. Nc6 Rxd1 22. Rxd1 {0-1 (53) Salvador Rey,M (2016)-Exposito Amaro,J (2436) Barcelona 2015}) 16. Qe4 {[%emt 0:01:20]} Nxb3 {[%emt 0:02:16]} 17. axb3 {[%emt 0:00:09]} Qe6 {[%emt 0:02:53]} 18. Bc5 {[%emt 0:06:41]} Rfd8 {[%emt 0:06:06]} 19. b4 {[%emt 0:00:20]} Qb3 {[%emt 0:01:30] [#]} 20. Qh4 {[%emt 0:10:54]} ({White should play} 20. Rxd8+ $1 $16 Rxd8 21. Qb7) 20... Nd5 {[%emt 0:23:06]} 21. Ne4 $11 {[%emt 0:08:14]} (21. Rd3 $14 h5 22. Re1) 21... h6 {[%emt 0:00:40]} 22. Rd2 {[%emt 0:03:48]} g5 {[%emt 0:07:50]} 23. Qg4 {[%emt 0:00:22]} Nf4 {[%emt 0:01:38]} 24. Rfd1 {[%emt 0:03:39]} Rxd2 {[%emt 0:00:27]} 25. Rxd2 {[%emt 0:00:05]} a5 {[%emt 0:03:12]} 26. bxa5 {[%emt 0:02:21]} Qc4 {[%emt 0:05:21]} 27. Qf5 {[%emt 0:01:25]} Ng6 {[%emt 0:03:00]} 28. g3 {[%emt 0:07:01]} Rxa5 {[%emt 0:02:17]} 29. Ba3 {[%emt 0:01:41]} Rd5 {[%emt 0:03:04]} 30. Rxd5 {[%emt 0:00:12]} Qxd5 {[%emt 0:00:01]} 31. Bc5 {[%emt 0:04:10]} Qb3 {[%emt 0:01:23]} 32. Ba3 {[%emt 0:00:40]} Qd5 {[%emt 0:01:25]} 33. Bc5 {[%emt 0:01:05]} Qb3 {[%emt 0:00:06]} 1/2-1/2

[Event "9th Sharjah Cup Women 2018"]
[Site "Sharjah"]
[Date "2018.12.19"]
[Round "8"]
[White "Gu, Xiaobing"]
[Black "Mona, Khaled"]
[Result "1-0"]
[ECO "C25"]
[WhiteElo "2295"]
[BlackElo "2158"]
[Annotator "NA"]
[PlyCount "49"]
[EventDate "2018.12.14"]
[EventType "swiss"]
[EventCountry "UAE"]
[SourceTitle "playchess.com"]
[Source "ChessBase"]
[SourceQuality "1"]
[TimeControl "5400+30"]

1. e4 {[%emt 0:00:00]} e5 {[%emt 0:00:00]} 2. Nc3 {[%emt 0:00:10]} Bc5 {[%emt 0:00:08]} 3. g3 {[%emt 0:00:28]} Nf6 {[%emt 0:00:10]} 4. Bg2 {[%emt 0:00:08]} Nc6 {[%emt 0:00:49]} 5. Nge2 {[%emt 0:00:12]} d6 {[%emt 0:00:22]} 6. O-O {[%emt 0:00:29]} a6 {[%emt 0:00:05]} 7. d3 {[%emt 0:00:21]} Be6 {[%emt 0:00:21]} 8. h3 {[%emt 0:01:25] C26: Vienna Game: 2...Nf6, sidelines} (8. Nd5 Nd4 9. Nxd4 Bxd4 10. c3 Ba7 11. d4 c6 12. Nxf6+ Qxf6 13. Be3 O-O 14. f4 exd4 15. cxd4 Rfe8 {½-½ (33) Bachmann,A (2593)-Ragger,M (2698) Berlin 2015}) 8... h6 {[%emt 0:04:12]} 9. Kh2 {[%emt 0:03:04]} d5 {[%emt 0:07:29]} 10. f4 {[%emt 0:02:55]} (10. exd5 $1 $14 Nxd5 11. f4) 10... dxe4 {[%emt 0:01:20]} ({Better is} 10... d4 $1 $15 11. Na4 Ba7) 11. fxe5 $146 {[%emt 0:17:17]} ({Predecessor:} 11. Nxe4 Nxe4 12. Bxe4 Qd7 13. f5 Bd5 14. Nc3 Bxe4 15. Nxe4 {½-½ (25) Wilde,D (2175)-Hamann,C Bad Segeberg 2000}) 11... Nxe5 {[%emt 0:01:05]} 12. Nxe4 {[%emt 0:00:05]} Nxe4 {[%emt 0:02:04]} 13. Bxe4 {[%emt 0:00:02]} Nc6 {[%emt 0:13:23]} 14. Nf4 {[%emt 0:02:53]} O-O {[%emt 0:02:53]} 15. Qh5 {[%emt 0:01:31]} Qe7 {[%emt 0:03:44]} 16. Bd2 {[%emt 0:12:40]} Bd6 {[%emt 0:10:48]} (16... Bd4 $142 17. c3 Be5 18. Nxe6 Qxe6) 17. Nxe6 {[%emt 0:03:29]} Qxe6 {[%emt 0:03:11]} 18. Rae1 {[%emt 0:02:02]} Qxa2 {[%emt 0:04:55]} 19. Bxh6 {[%emt 0:02:53]} Qa5 {[%emt 0:06:47]} 20. Bd5 {[%emt 0:02:10]} gxh6 {[%emt 0:04:53]} 21. Qg6+ {[%emt 0:00:51]} Kh8 {[%emt 0:00:07]} 22. Qxh6+ {[%emt 0:00:03]} Kg8 {[%emt 0:00:04]} 23. Qg5+ {[%emt 0:00:18]} Kh8 {[%emt 0:00:16] [#]} 24. Rf6 $1 {[%emt 0:00:29]} Bxg3+ {[%emt 0:00:40]} 25. Kg2 {[%emt 0:01:22]} 1-0

[Event "9th Sharjah Cup Women 2018"]
[Site "Sharjah"]
[Date "2018.12.19"]
[Round "8"]
[White "Kiolbasa, Oliwia"]
[Black "Shanya Mishra"]
[Result "1-0"]
[ECO "B47"]
[WhiteElo "2244"]
[BlackElo "1978"]
[Annotator "NA"]
[PlyCount "37"]
[EventDate "2018.12.14"]
[EventType "swiss"]
[EventCountry "UAE"]
[SourceTitle "playchess.com"]
[Source "ChessBase"]
[SourceQuality "1"]
[TimeControl "5400+30"]

1. e4 {[%emt 0:00:00]} c5 {[%emt 0:00:00]} 2. Nf3 {[%emt 0:00:00]} e6 {[%emt 0:00:42]} 3. d4 {[%emt 0:00:00]} cxd4 {[%emt 0:00:34]} 4. Nxd4 {[%emt 0:00:05]} Nc6 {[%emt 0:00:44]} 5. Nc3 {[%emt 0:00:14]} Qc7 {[%emt 0:00:56]} 6. Be2 {[%emt 0:00:42]} a6 {[%emt 0:01:15]} 7. O-O {[%emt 0:00:26]} b5 {[%emt 0:01:06]} 8. Nxc6 {[%emt 0:02:33]} dxc6 {[%emt 0:01:14]} 9. a4 {[%emt 0:02:34]} Rb8 {[%emt 0:04:28]} 10. axb5 {[%emt 0:09:11]} cxb5 {[%emt 0:02:39]} 11. e5 {[%emt 0:02:42]} Bb7 {[%emt 0:04:59]} 12. Nxb5 {[%emt 0:07:05]} axb5 {[%emt 0:05:16]} 13. Bxb5+ {[%emt 0:00:25]} Bc6 {[%emt 0:03:14]} 14. Ra7 {[%emt 0:01:37]} Qc8 {[%emt 0:17:46]} 15. Qf3 $1 {[%emt 0:02:07] Double Attack} Be7 {[%emt 0:02:09]} 16. Bxc6+ {[%emt 0:03:23]} Kf8 {[%emt 0:00:10]} 17. Rd1 {[%emt 0:00:41]} f5 {[%emt 0:04:30]} 18. Rdd7 {[%emt 0:05:38]} h6 $18 {[%emt 0:01:30]} 19. b3 {[%emt 0:01:59]} 1-0

[Event "9th Sharjah Cup Women 2018"]
[Site "Sharjah"]
[Date "2018.12.19"]
[Round "8"]
[White "Stetsko, Lanita"]
[Black "Novikova, Margarita"]
[Result "1-0"]
[ECO "B01"]
[WhiteElo "2194"]
[BlackElo "2017"]
[Annotator "NA"]
[PlyCount "101"]
[EventDate "2018.12.14"]
[EventType "swiss"]
[EventCountry "UAE"]
[SourceTitle "playchess.com"]
[Source "ChessBase"]
[SourceQuality "1"]
[TimeControl "5400+30"]

1. e4 {[%emt 0:00:00]} d5 {[%emt 0:00:15]} 2. exd5 {[%emt 0:00:00]} Qxd5 {[%emt 0:00:12]} 3. Nc3 {[%emt 0:00:00]} Qd6 {[%emt 0:00:04]} 4. d4 {[%emt 0:00:20]} Nf6 {[%emt 0:00:10]} 5. Nf3 {[%emt 0:00:28]} Bf5 {[%emt 0:00:18]} 6. g3 {[%emt 0:09:47]} c6 {[%emt 0:01:41]} 7. Bg2 {[%emt 0:00:20]} e6 {[%emt 0:04:54]} 8. O-O {[%emt 0:02:11]} Qc7 {[%emt 0:10:01]} 9. Ne5 {[%emt 0:04:20]} Nbd7 {[%emt 0:04:54]} 10. Nc4 {[%emt 0:04:30]} Nb6 {[%emt 0:03:32]} 11. Bf4 {[%emt 0:06:11]} Qd8 {[%emt 0:00:37]} 12. Ne3 {[%emt 0:00:26]} Bg6 {[%emt 0:03:02]} 13. Re1 {[%emt 0:06:27]} Be7 {[%emt 0:08:42]} 14. Be5 {[%emt 0:05:49]} O-O {[%emt 0:04:48]} 15. h4 {[%emt 0:01:50]} h6 {[%emt 0:07:09]} 16. Ng4 {[%emt 0:09:23]} Nxg4 {[%emt 0:07:43]} 17. Qxg4 {[%emt 0:00:09]} Bf6 {[%emt 0:11:11]} 18. Be4 {[%emt 0:01:36]} Bh7 $14 {[%emt 0:07:00]} 19. Bxh7+ {[%emt 0:01:23]} Kxh7 {[%emt 0:00:01]} 20. Ne4 {[%emt 0:00:13]} Nd7 {[%emt 0:02:50]} 21. Rad1 {[%emt 0:04:41]} Qa5 {[%emt 0:08:34]} 22. Bd6 {[%emt 0:06:11]} Rfe8 {[%emt 0:03:54]} 23. a3 {[%emt 0:02:28]} Be7 {[%emt 0:01:42]} 24. Qf4 {[%emt 0:01:04]} Kg8 {[%emt 0:01:35]} 25. Re3 {[%emt 0:03:36]} Qh5 {[%emt 0:01:51]} 26. Rde1 {[%emt 0:00:53]} Bxd6 {[%emt 0:01:45]} 27. Nxd6 {[%emt 0:00:50]} Rf8 {[%emt 0:00:08]} 28. Nxb7 {[%emt 0:02:16]} Rab8 {[%emt 0:00:25]} 29. Rb3 {[%emt 0:00:11]} Qd5 {[%emt 0:00:35]} 30. Nc5 {[%emt 0:10:14]} e5 {[%emt 0:00:21]} 31. Qe4 {[%emt 0:00:18]} Qxe4 {[%emt 0:02:06]} 32. Rxe4 {[%emt 0:00:10]} Nxc5 {[%emt 0:00:05]} 33. dxc5 {[%emt 0:00:13]} Rxb3 {[%emt 0:00:28]} 34. cxb3 {[%emt 0:00:01]} Rb8 {[%emt 0:01:23]} 35. Rxe5 {[%emt 0:01:21]} Rxb3 {[%emt 0:00:02]} 36. Re8+ {[%emt 0:00:05]} Kh7 {[%emt 0:00:06]} 37. Rc8 {[%emt 0:00:13]} Rxb2 {[%emt 0:00:38]} 38. Rxc6 {[%emt 0:00:03]} a5 {[%emt 0:00:27]} 39. Ra6 {[%emt 0:00:34]} Rb5 {[%emt 0:00:18]} 40. c6 {[%emt 0:00:24]} Rc5 {[%emt 0:00:16]} 41. Kf1 {[%emt 0:01:07]} Rc3 {[%emt 0:01:11]} 42. a4 {[%emt 0:02:01]} Rc4 {[%emt 0:00:05]} 43. Ke2 {[%emt 0:02:34]} Rxa4 {[%emt 0:00:41]} 44. Kd3 {[%emt 0:00:04]} Ra1 {[%emt 0:00:39]} 45. Kc4 {[%emt 0:00:39]} Kg8 {[%emt 0:02:22]} 46. Kb5 {[%emt 0:00:30]} Rb1+ {[%emt 0:00:32]} 47. Kxa5 {[%emt 0:00:26]} Kh7 {[%emt 0:00:41]} 48. c7 {[%emt 0:00:10]} Rc1 {[%emt 0:00:07]} 49. Kb6 {[%emt 0:00:03]} Rb1+ {[%emt 0:00:04]} 50. Ka7 {[%emt 0:00:05]} Rc1 {[%emt 0:00:06]} 51. Kb7 {[%emt 0:00:03]} 1-0

[Event "9th Sharjah Cup Women 2018"]
[Site "Sharjah"]
[Date "2018.12.19"]
[Round "8"]
[White "Berke, Ana"]
[Black "Enkhtuul, Altan-Ulzii"]
[Result "1-0"]
[ECO "B03"]
[WhiteElo "2151"]
[BlackElo "2267"]
[Annotator "NA"]
[PlyCount "137"]
[EventDate "2018.12.14"]
[EventType "swiss"]
[EventCountry "UAE"]
[SourceTitle "playchess.com"]
[Source "ChessBase"]
[SourceQuality "1"]
[TimeControl "5400+30"]

1. e4 {[%emt 0:00:00]} Nf6 {[%emt 0:00:00]} 2. e5 {[%emt 0:00:00]} Nd5 {[%emt 0:00:00]} 3. d4 {[%emt 0:00:00]} d6 {[%emt 0:00:00]} 4. c4 {[%emt 0:00:00]} Nb6 {[%emt 0:00:00]} 5. exd6 {[%emt 0:00:00]} exd6 {[%emt 0:00:07]} 6. Nc3 {[%emt 0:01:36]} Be7 {[%emt 0:00:06]} 7. Bd3 {[%emt 0:00:13]} Nc6 {[%emt 0:00:38]} 8. Nge2 {[%emt 0:00:07]} Bf6 {[%emt 0:01:37] B03: Alekhine's Defence: Four Pawns Attack} 9. Be3 {[%emt 0:00:40]} O-O {[%emt 0:00:42]} 10. b3 {[%emt 0:00:20]} Bg4 {[%emt 0:08:01]} 11. O-O {[%emt 0:01:02]} Re8 {[%emt 0:10:46]} 12. Qd2 {[%emt 0:00:54]} Bxe2 {[%emt 0:01:21]} 13. Bxe2 {[%emt 0:00:23] LiveBook: 4 Games} d5 {[%emt 0:00:41]} 14. c5 {[%emt 0:00:25]} Nc8 {[%emt 0:00:10]} 15. Rfe1 {[%emt 0:01:47]} N8e7 {[%emt 0:01:16]} 16. Bg4 {[%emt 0:00:52] [#]} Ng6 $146 {[%emt 0:01:34]} 17. g3 {[%emt 0:02:11]} a6 {[%emt 0:01:49]} 18. Rad1 {[%emt 0:05:39]} Nf8 {[%emt 0:17:10]} 19. Bf3 {[%emt 0:17:51]} Ne7 {[%emt 0:04:41]} 20. Bg5 {[%emt 0:04:07]} Bxg5 {[%emt 0:00:14]} 21. Qxg5 {[%emt 0:00:06]} c6 {[%emt 0:02:16]} 22. Bg4 {[%emt 0:05:27]} h6 {[%emt 0:02:01]} 23. Qd2 {[%emt 0:01:35]} Qc7 {[%emt 0:01:27]} 24. Re2 {[%emt 0:01:29]} Nh7 {[%emt 0:04:08]} 25. Rde1 {[%emt 0:02:31]} Nf6 {[%emt 0:00:17]} 26. Bh3 {[%emt 0:01:56]} Rad8 {[%emt 0:05:17]} 27. b4 {[%emt 0:03:09]} g5 {[%emt 0:08:11]} 28. a4 {[%emt 0:08:32]} Kg7 {[%emt 0:00:15]} 29. b5 $14 {[%emt 0:01:53]} axb5 {[%emt 0:00:09]} 30. axb5 {[%emt 0:00:17]} g4 {[%emt 0:00:11]} 31. Bg2 {[%emt 0:01:24]} Qd7 {[%emt 0:02:37]} 32. Qd3 {[%emt 0:03:01]} Ng6 {[%emt 0:09:54]} 33. b6 {[%emt 0:03:43]} Rxe2 {[%emt 0:00:20]} 34. Rxe2 {[%emt 0:00:47]} Ra8 {[%emt 0:00:09]} 35. Ra2 {[%emt 0:04:51]} Qe8 {[%emt 0:00:22]} 36. Rxa8 {[%emt 0:04:54]} Qxa8 {[%emt 0:00:08]} 37. h3 {[%emt 0:01:29]} Qa1+ {[%emt 0:01:36]} 38. Kh2 {[%emt 0:01:23]} h5 {[%emt 0:00:26]} 39. Qe3 {[%emt 0:02:28]} h4 {[%emt 0:09:17]} 40. Ne2 {[%emt 0:02:07]} Qe1 {[%emt 0:05:34]} 41. gxh4 {[%emt 0:08:15]} Nxh4 {[%emt 0:00:06]} 42. Ng3 {[%emt 0:01:22]} Nxg2 {[%emt 0:04:48]} 43. Qg5+ {[%emt 0:05:40]} Kf8 {[%emt 0:00:09]} 44. Qxf6 {[%emt 0:01:05]} gxh3 {[%emt 0:00:37]} 45. Nf5 {[%emt 0:01:56]} Ke8 {[%emt 0:00:27]} 46. Nd6+ {[%emt 0:00:28]} Kd7 {[%emt 0:00:21]} 47. Qxf7+ {[%emt 0:01:15]} Qe7 {[%emt 0:00:08]} 48. Qxe7+ {[%emt 0:01:52]} Kxe7 {[%emt 0:00:04]} 49. Nxb7 {[%emt 0:00:14]} Nf4 {[%emt 0:00:09]} 50. Na5 {[%emt 0:00:25]} Kd7 {[%emt 0:00:06]} 51. Nb3 {[%emt 0:00:22]} Nd3 {[%emt 0:01:13]} 52. f3 {[%emt 0:00:16]} Nf4 {[%emt 0:00:19]} 53. Na1 {[%emt 0:01:25]} Kc8 {[%emt 0:00:57]} 54. Nc2 {[%emt 0:00:10]} Kb8 {[%emt 0:00:24]} 55. Ne3 {[%emt 0:00:51]} Kc8 {[%emt 0:00:36]} 56. Nf5 {[%emt 0:00:19]} Kd7 {[%emt 0:01:30]} 57. Kg3 {[%emt 0:00:33]} Ne6 {[%emt 0:00:33]} 58. Kxh3 {[%emt 0:00:08]} Ng5+ {[%emt 0:00:22]} 59. Kg4 {[%emt 0:00:15]} Nf7 {[%emt 0:00:01]} 60. Kf4 {[%emt 0:00:32]} Nh8 {[%emt 0:00:39]} 61. Kg5 {[%emt 0:00:29]} Nf7+ {[%emt 0:00:08]} 62. Kf6 {[%emt 0:00:13]} Nd8 {[%emt 0:00:15]} 63. Nd6 {[%emt 0:00:20]} Ne6 {[%emt 0:00:12]} 64. b7 {[%emt 0:00:43]} Kc7 {[%emt 0:01:09]} 65. Kxe6 {[%emt 0:00:09]} Kb8 {[%emt 0:00:07]} 66. f4 {[%emt 0:00:20]} Kc7 {[%emt 0:00:04]} 67. f5 {[%emt 0:00:16]} Kb8 {[%emt 0:00:04]} 68. f6 {[%emt 0:00:06]} Ka7 {[%emt 0:00:04]} 69. f7 {[%emt 0:00:07]} 1-0